[Event "Open Nuevo Centro. Jornada 2"]
[Site "Chess.com"]
[Date "2020.06.26"]
[Round "6"]
[White "Reig Albero, Ferran"]
[Black "Chernikov, Vladimir"]
[Result "1/2-1/2"]
[WhiteElo "1808"]
[BlackElo "2267"]
[TimeControl "180+2"]
[EndTime "11:38:02 PDT"]
[Termination "Tablas por repeticiÃ³n de movimientos"]

1. e4 {[%clk 0:02:57.2]} 1... c5 {[%clk 0:02:58.9]} 2. Nf3 {[%clk 0:02:58]} 2...
Nc6 {[%clk 0:02:58.8]} 3. d4 {[%clk 0:02:58.9]} 3... cxd4 {[%clk 0:02:58.4]} 4.
Nxd4 {[%clk 0:02:59.9]} 4... e5 {[%clk 0:03:00.1]} 5. Nb5 {[%clk 0:03:00.2]}
5... d6 {[%clk 0:03:01.5]} 6. c4 {[%clk 0:03:01]} 6... Be7 {[%clk 0:03:01.9]} 7.
N1c3 {[%clk 0:03:01.8]} 7... a6 {[%clk 0:03:03.2]} 8. Na3 {[%clk 0:03:02.2]}
8... f5 {[%clk 0:03:04.8]} 9. exf5 {[%clk 0:02:57.9]} 9... Bxf5 {[%clk
0:03:06.7]} 10. Bd3 {[%clk 0:02:59]} 10... Be6 {[%clk 0:03:08.1]} 11. O-O {[%clk
0:02:58.9]} 11... Nf6 {[%clk 0:03:08.9]} 12. Be3 {[%clk 0:02:54.3]} 12... O-O
{[%clk 0:03:08]} 13. h3 {[%clk 0:02:54.3]} 13... Qd7 {[%clk 0:03:04.6]} 14. Kh2
{[%clk 0:02:53.8]} 14... Rad8 {[%clk 0:03:02.7]} 15. Qe2 {[%clk 0:02:46.4]}
15... Nd4 {[%clk 0:02:58.6]} 16. Bxd4 {[%clk 0:02:44.8]} 16... exd4 {[%clk
0:03:00.5]} 17. Ne4 {[%clk 0:02:44]} 17... Nxe4 {[%clk 0:02:24.2]} 18. Qxe4
{[%clk 0:02:43.3]} 18... Bf5 {[%clk 0:02:04.2]} 19. Qxd4 {[%clk 0:02:28.4]}
19... Bf6 {[%clk 0:02:03.5]} 20. Qd5+ {[%clk 0:02:24.7]} 20... Be6 {[%clk
0:02:04.6]} 21. Qe4 {[%clk 0:02:17.7]} 21... Bf5 {[%clk 0:02:05.4]} 22. Qd5+
{[%clk 0:02:17.7]} 22... Be6 {[%clk 0:02:06.4]} 23. Qe4 {[%clk 0:02:18.6]} 23...
g6 {[%clk 0:02:02.3]} 24. Rab1 {[%clk 0:02:13.4]} 24... d5 {[%clk 0:02:00.3]}
25. cxd5 {[%clk 0:02:10.7]} 25... Bxd5 {[%clk 0:02:00.8]} 26. Qg4 {[%clk
0:02:02.5]} 26... Qxg4 {[%clk 0:01:17.4]} 27. hxg4 {[%clk 0:02:01.5]} 27... Bxa2
{[%clk 0:01:17.2]} 28. Bc4+ {[%clk 0:01:55.9]} 28... Bxc4 {[%clk 0:01:16.6]} 29.
Nxc4 {[%clk 0:01:57]} 29... Rd4 {[%clk 0:01:15.9]} 30. b3 {[%clk 0:01:57.2]}
30... Rxg4 {[%clk 0:01:10.9]} 31. Rbd1 {[%clk 0:01:57.3]} 31... b5 {[%clk
0:01:06.6]} 32. Ne3 {[%clk 0:01:56]} 32... Rd4 {[%clk 0:01:06.1]} 33. Rxd4
{[%clk 0:01:50.7]} 33... Bxd4 {[%clk 0:01:08]} 34. Rd1 {[%clk 0:01:36.3]} 34...
Bxe3 {[%clk 0:01:08.5]} 35. fxe3 {[%clk 0:01:37.5]} 35... Re8 {[%clk 0:01:09.9]}
36. Rd3 {[%clk 0:01:38.1]} 36... Kf7 {[%clk 0:01:07.6]} 37. Kg3 {[%clk 0:01:39]}
37... Kf6 {[%clk 0:01:06.9]} 38. Kf3 {[%clk 0:01:39.5]} 38... b4 {[%clk
0:01:02.2]} 39. Rd4 {[%clk 0:01:36.6]} 39... a5 {[%clk 0:00:59.3]} 40. Rd5
{[%clk 0:01:36.8]} 40... Re5 {[%clk 0:00:56.1]} 41. Rd6+ {[%clk 0:01:36]} 41...
Re6 {[%clk 0:00:57]} 42. Rd5 {[%clk 0:01:37]} 42... Re5 {[%clk 0:00:43.6]} 43.
Rd6+ {[%clk 0:01:37.5]} 43... Kg5 {[%clk 0:00:42.5]} 44. Ra6 {[%clk 0:01:29.7]}
44... Rc5 {[%clk 0:00:42.8]} 45. g3 {[%clk 0:01:27.4]} 45... Kf5 {[%clk
0:00:40.5]} 46. Ra7 {[%clk 0:01:22.6]} 46... h5 {[%clk 0:00:39.8]} 47. Ra6
{[%clk 0:01:22.6]} 47... g5 {[%clk 0:00:40.4]} 48. Ra8 {[%clk 0:01:13.9]} 48...
g4+ {[%clk 0:00:40.6]} 49. Ke2 {[%clk 0:01:14.2]} 49... Rc2+ {[%clk 0:00:28.9]}
50. Kd3 {[%clk 0:01:14.7]} 50... Rc3+ {[%clk 0:00:29.8]} 51. Kd4 {[%clk
0:01:15.3]} 51... Rxb3 {[%clk 0:00:14.6]} 52. Rxa5+ {[%clk 0:01:14.6]} 52... Kg6
{[%clk 0:00:15.5]} 53. Ra6+ {[%clk 0:01:14.3]} 53... Kg5 {[%clk 0:00:16.6]} 54.
Ra5+ {[%clk 0:01:14.3]} 54... Kh6 {[%clk 0:00:17.9]} 55. Ra6+ {[%clk 0:01:15.3]}
55... Kg7 {[%clk 0:00:19]} 56. Ra5 {[%clk 0:01:15.5]} 56... Rb1 {[%clk
0:00:14.3]} 57. Rxh5 {[%clk 0:01:15.5]} 57... Kf6 {[%clk 0:00:13.1]} 58. Rb5
{[%clk 0:01:13.2]} 58... Rg1 {[%clk 0:00:11.8]} 59. e4 {[%clk 0:01:12.7]} 59...
Rxg3 {[%clk 0:00:11.2]} 60. Rxb4 {[%clk 0:01:13.7]} 60... Ra3 {[%clk 0:00:11.6]}
61. Rb6+ {[%clk 0:01:11.9]} 61... Ke7 {[%clk 0:00:12]} 62. Ke5 {[%clk
0:01:12.7]} 62... g3 {[%clk 0:00:12.2]} 63. Rg6 {[%clk 0:01:12.4]} 63... Ra5+
{[%clk 0:00:11.4]} 64. Kf4 {[%clk 0:01:12.9]} 64... Kf7 {[%clk 0:00:11.2]} 65.
Rxg3 {[%clk 0:01:13.2]} 65... Ra1 {[%clk 0:00:10.9]} 66. Rb3 {[%clk 0:01:13.8]}
66... Rf1+ {[%clk 0:00:11.2]} 67. Ke5 {[%clk 0:01:14.4]} 67... Ke7 {[%clk
0:00:09.8]} 68. Rb7+ {[%clk 0:01:13.6]} 68... Kd8 {[%clk 0:00:09.7]} 69. Ke6
{[%clk 0:01:14.6]} 69... Ra1 {[%clk 0:00:10.4]} 70. e5 {[%clk 0:01:15]} 70...
Ra6+ {[%clk 0:00:10.8]} 71. Kf5 {[%clk 0:01:14.8]} 71... Ra5 {[%clk 0:00:11.9]}
72. Rh7 {[%clk 0:01:15.2]} 72... Ra1 {[%clk 0:00:11.1]} 73. Rh8+ {[%clk
0:01:13.3]} 73... Ke7 {[%clk 0:00:11.7]} 74. Rh7+ {[%clk 0:01:14.2]} 74... Kd8
{[%clk 0:00:13]} 75. Rh8+ {[%clk 0:01:15.1]} 75... Ke7 {[%clk 0:00:14.2]} 76.
Rh7+ {[%clk 0:01:16.1]} 76... Kd8 {[%clk 0:00:15.5]} 1/2-1

[Event "Open Nuevo Centro. Jornada 2"]
[Site "Chess.com"]
[Date "2020.06.26"]
[Round "6"]
[White "Silva Rodriguez, Fernando"]
[Black "Montesinos Diaz, Luis"]
[Result "1-0"]
[WhiteElo "2473"]
[BlackElo "1878"]
[TimeControl "180+2"]
[EndTime "11:38:17 PDT"]
[Termination "Victoria de HarnFer por abandono"]

1. d4 {[%clk 0:03:01.9]} 1... d5 {[%clk 0:02:59.5]} 2. Nc3 {[%clk 0:03:03.4]}
2... Nf6 {[%clk 0:02:58.4]} 3. Bf4 {[%clk 0:03:04.4]} 3... Bf5 {[%clk
0:02:53.9]} 4. f3 {[%clk 0:03:04.9]} 4... e6 {[%clk 0:02:54.2]} 5. g4 {[%clk
0:03:06.3]} 5... Bg6 {[%clk 0:02:54.9]} 6. h4 {[%clk 0:03:07.2]} 6... h5 {[%clk
0:02:54.8]} 7. g5 {[%clk 0:03:08.6]} 7... Nfd7 {[%clk 0:02:56]} 8. e3 {[%clk
0:03:10.5]} 8... c5 {[%clk 0:02:57]} 9. Bd3 {[%clk 0:03:11.7]} 9... Bxd3 {[%clk
0:02:57.2]} 10. Qxd3 {[%clk 0:03:13.6]} 10... Nc6 {[%clk 0:02:58]} 11. O-O-O
{[%clk 0:03:12.9]} 11... c4 {[%clk 0:02:58.3]} 12. Qd2 {[%clk 0:03:10.4]} 12...
Qa5 {[%clk 0:02:59.3]} 13. e4 {[%clk 0:03:02.8]} 13... O-O-O {[%clk 0:02:53.5]}
14. Nge2 {[%clk 0:03:01.8]} 14... b5 {[%clk 0:02:52.5]} 15. exd5 {[%clk
0:02:38.7]} 15... exd5 {[%clk 0:02:49.7]} 16. a3 {[%clk 0:01:44.1]} 16... b4
{[%clk 0:02:48.8]} 17. Nb1 {[%clk 0:01:37.1]} 17... Qa6 {[%clk 0:02:28.8]} 18.
Qe3 {[%clk 0:01:30.6]} 18... bxa3 {[%clk 0:02:26.9]} 19. bxa3 {[%clk 0:01:29.4]}
19... Nb6 {[%clk 0:02:09]} 20. Nec3 {[%clk 0:01:17.1]} 20... Bxa3+ {[%clk
0:02:06.3]} 21. Nxa3 {[%clk 0:01:19]} 21... Qxa3+ {[%clk 0:02:07.6]} 22. Kd2
{[%clk 0:01:20.9]} 22... Rhe8 {[%clk 0:02:06.8]} 23. Qf2 {[%clk 0:01:02.9]}
23... Na4 {[%clk 0:01:54.5]} 24. Nxa4 {[%clk 0:00:59.5]} 24... Qxa4 {[%clk
0:01:54.5]} 25. Ra1 {[%clk 0:00:47.8]} 25... Qb4+ {[%clk 0:01:54.6]} 26. Kc1
{[%clk 0:00:48.7]} 26... c3 {[%clk 0:01:45.7]} 27. Rb1 {[%clk 0:00:48.7]} 27...
Qxd4 {[%clk 0:01:27]} 28. Qxd4 {[%clk 0:00:48.6]} 28... Nxd4 {[%clk 0:01:28.9]}
29. Rb4 {[%clk 0:00:36.4]} 29... Ne2+ {[%clk 0:01:26.6]} 30. Kb1 {[%clk
0:00:37]} 30... Nxf4 {[%clk 0:01:10.3]} 31. Rxf4 {[%clk 0:00:38.9]} 31... Re7
{[%clk 0:01:08]} 32. Rd1 {[%clk 0:00:37.3]} 32... Kc7 {[%clk 0:01:07.2]} 33. Rd3
{[%clk 0:00:36.9]} 33... Rb8+ {[%clk 0:01:02.4]} 34. Ka2 {[%clk 0:00:33.9]}
34... Rb2+ {[%clk 0:01:02.6]} 35. Ka3 {[%clk 0:00:35.1]} 35... Rxc2 {[%clk
0:00:54.1]} 36. Kb3 {[%clk 0:00:36.6]} 36... Rce2 {[%clk 0:00:46.5]} 37. Rxd5
{[%clk 0:00:24.9]} 37... Kc6 {[%clk 0:00:43.9]} 38. Rd3 {[%clk 0:00:19.6]} 38...
c2 {[%clk 0:00:23.7]} 39. Rc4+ {[%clk 0:00:20.8]} 39... Kb5 {[%clk 0:00:21.4]}
40. Rd5+ {[%clk 0:00:19]} 40... Kb6 {[%clk 0:00:21.5]} 41. Rd6+ {[%clk
0:00:17.9]} 41... Kb7 {[%clk 0:00:21.6]} 42. Rxc2 {[%clk 0:00:09.4]} 42... R7e3+
{[%clk 0:00:20.5]} 43. Rc3 {[%clk 0:00:07.8]} 43... Rxc3+ {[%clk 0:00:20.5]} 44.
Kxc3 {[%clk 0:00:09.7]} 44... Re3+ {[%clk 0:00:21.8]} 45. Kd4 {[%clk 0:00:11.1]}
45... Rxf3 {[%clk 0:00:22.9]} 46. Rd7+ {[%clk 0:00:11.5]} 46... Kc6 {[%clk
0:00:24]} 47. Rxa7 {[%clk 0:00:11.8]} 47... Rf4+ {[%clk 0:00:24.4]} 48. Ke5
{[%clk 0:00:13.2]} 48... Rxh4 {[%clk 0:00:22.9]} 49. Rxf7 {[%clk 0:00:14.5]}
49... Rg4 {[%clk 0:00:19.3]} 50. Rxg7 {[%clk 0:00:13.4]} 50... h4 {[%clk
0:00:20.4]} 51. Kf5 {[%clk 0:00:14.6]} 51... Rg1 {[%clk 0:00:20.7]} 52. Rh7
{[%clk 0:00:16]} 52... Rf1+ {[%clk 0:00:20.1]} 53. Ke6 {[%clk 0:00:13.9]} 53...
Re1+ {[%clk 0:00:19.5]} 54. Kf6 {[%clk 0:00:15.4]} 54... Rf1+ {[%clk 0:00:19.9]}
55. Kg7 {[%clk 0:00:15]} 55... Rf4 {[%clk 0:00:20]} 56. g6 {[%clk 0:00:13.8]}
56... Kd6 {[%clk 0:00:20.8]} 57. Kh8 {[%clk 0:00:13.7]} 57... Ke6 {[%clk
0:00:21.1]} 58. g7 {[%clk 0:00:14.6]} 58... h3 {[%clk 0:00:03]} 59. g8=Q+ {[%clk
0:00:15.9]} 59... Kf6 {[%clk 0:00:03.2]} 60. Rxh3 {[%clk 0:00:13]} 60... Ra4
{[%clk 0:00:03]} 61. Qg7+ {[%clk 0:00:13]} 61... Ke6 {[%clk 0:00:03.2]} 62. Rh6+
{[%clk 0:00:14.3]} 62... Kd5 {[%clk 0:00:03.5]} 63. Qd7+ {[%clk 0:00:14.3]} 1

[Event "Open Nuevo Centro. Jornada 2"]
[Site "Chess.com"]
[Date "2020.06.26"]
[Round "6"]
[White "Donate Moreno, Silvia"]
[Black "Martinez Hernandez, Paula"]
[Result "1/2-1/2"]
[WhiteElo "1788"]
[BlackElo "2022"]
[TimeControl "180+2"]
[EndTime "11:38:24 PDT"]
[Termination "Partida en tablas por mutuo acuerdo"]

1. e4 {[%clk 0:03:01.9]} 1... c6 {[%clk 0:02:57.7]} 2. d4 {[%clk 0:03:02.5]}
2... d5 {[%clk 0:02:58.5]} 3. exd5 {[%clk 0:03:03]} 3... cxd5 {[%clk 0:02:59.6]}
4. Bd3 {[%clk 0:03:04.4]} 4... Nc6 {[%clk 0:02:58]} 5. c3 {[%clk 0:03:05.3]}
5... Nf6 {[%clk 0:02:55.4]} 6. Bf4 {[%clk 0:03:05.8]} 6... Bg4 {[%clk
0:02:52.9]} 7. Qb3 {[%clk 0:03:06]} 7... Qd7 {[%clk 0:02:50.3]} 8. Nd2 {[%clk
0:03:03.3]} 8... e6 {[%clk 0:02:51.3]} 9. Ngf3 {[%clk 0:03:03.3]} 9... Be7
{[%clk 0:02:51.9]} 10. O-O {[%clk 0:03:01.9]} 10... O-O {[%clk 0:02:52.8]} 11.
Ne5 {[%clk 0:02:52.3]} 11... Nxe5 {[%clk 0:02:40.3]} 12. dxe5 {[%clk 0:02:50.5]}
12... Ne8 {[%clk 0:02:40.3]} 13. Qc2 {[%clk 0:02:49.2]} 13... Bf5 {[%clk
0:02:30.5]} 14. Bxf5 {[%clk 0:02:48]} 14... exf5 {[%clk 0:02:29.9]} 15. Rad1
{[%clk 0:02:41.9]} 15... g5 {[%clk 0:02:24.1]} 16. Be3 {[%clk 0:02:40.8]} 16...
f4 {[%clk 0:02:22.8]} 17. Bd4 {[%clk 0:02:40.7]} 17... Nc7 {[%clk 0:02:19.1]}
18. Nf3 {[%clk 0:02:34.6]} 18... Qe6 {[%clk 0:02:05.6]} 19. Qb3 {[%clk
0:02:20.9]} 19... b6 {[%clk 0:01:59.8]} 20. Ne1 {[%clk 0:02:10.5]} 20... Rfd8
{[%clk 0:01:43.9]} 21. a4 {[%clk 0:02:09.4]} 21... h5 {[%clk 0:01:42.6]} 22. a5
{[%clk 0:02:01]} 22... bxa5 {[%clk 0:01:35.5]} 23. Qa4 {[%clk 0:01:50]} 23...
Qa6 {[%clk 0:01:25.6]} 24. Ra1 {[%clk 0:01:36.4]} 24... Ne6 {[%clk 0:01:12]} 25.
Qxa5 {[%clk 0:01:15.3]} 25... Qc4 {[%clk 0:01:08.5]} 26. Qa4 {[%clk 0:00:42.6]}
26... Nxd4 {[%clk 0:01:08]} 27. cxd4 {[%clk 0:00:40.4]} 27... Qe2 {[%clk
0:00:53.8]} 28. f3 {[%clk 0:00:24.8]} 28... Qxb2 {[%clk 0:00:38.4]} 29. Rf2
{[%clk 0:00:25.2]} 29... Qb4 {[%clk 0:00:29.5]} 30. Qxb4 {[%clk 0:00:25.4]}
30... Bxb4 {[%clk 0:00:29.8]} 31. Nc2 {[%clk 0:00:22.1]} 31... Bc3 {[%clk
0:00:30.7]} 32. Ra3 {[%clk 0:00:22.5]} 32... Rac8 {[%clk 0:00:31.3]} 33. Rf1
{[%clk 0:00:20.3]} 33... a5 {[%clk 0:00:31]} 34. Rb1 {[%clk 0:00:20.3]} 34...
Rb8 {[%clk 0:00:27.4]} 35. Rxb8 {[%clk 0:00:19.1]} 35... Bxd4+ {[%clk
0:00:26.4]} 36. Nxd4 {[%clk 0:00:17.9]} 36... Rxb8 {[%clk 0:00:27.8]} 37. Rxa5
{[%clk 0:00:19]} 37... Rb4 {[%clk 0:00:27.2]} 38. Rxd5 {[%clk 0:00:18.8]} 38...
Kf8 {[%clk 0:00:26.7]} 39. Ne2 {[%clk 0:00:18.5]} 39... Rb2 {[%clk 0:00:27.4]}
40. Kf2 {[%clk 0:00:19.2]} 40... Ke7 {[%clk 0:00:28.5]} 41. e6 {[%clk
0:00:20.1]} 41... f6 {[%clk 0:00:28]} 42. Rd7+ {[%clk 0:00:18.3]} 42... Kxe6
{[%clk 0:00:28.9]} 43. Rh7 {[%clk 0:00:19.5]} 43... h4 {[%clk 0:00:30.2]} 44. g3
{[%clk 0:00:19.4]} 44... fxg3+ {[%clk 0:00:28.4]} 45. hxg3 {[%clk 0:00:20.2]}
45... hxg3+ {[%clk 0:00:29.3]} 46. Kxg3 {[%clk 0:00:19.6]} 46... Rxe2 {[%clk
0:00:29.4]} 47. f4 {[%clk 0:00:20]} 47... gxf4+ {[%clk 0:00:27.8]} 48. Kxf4
{[%clk 0:00:20.7]} 48... Ra2 {[%clk 0:00:29.4]} 49. Rh5 {[%clk 0:00:20.5]} 49...
Ra4+ {[%clk 0:00:30.2]} 50. Ke3 {[%clk 0:00:21.2]} 50... f5 {[%clk 0:00:31.7]}
51. Rh6+ {[%clk 0:00:20.6]} 51... Ke5 {[%clk 0:00:32.8]} 52. Rh8 {[%clk
0:00:20.1]} 52... Ra3+ {[%clk 0:00:33.5]} 53. Ke2 {[%clk 0:00:20.8]} 53... Kf4
{[%clk 0:00:31.4]} 54. Rb8 {[%clk 0:00:21]} 54... Ra2+ {[%clk 0:00:29.4]} 55.
Kf1 {[%clk 0:00:21.3]} 55... Kg3 {[%clk 0:00:29.1]} 56. Rb3+ {[%clk 0:00:21.9]}
56... Kg4 {[%clk 0:00:30.4]} 57. Rc3 {[%clk 0:00:21.9]} 57... f4 {[%clk
0:00:31.5]} 58. Rb3 {[%clk 0:00:22.3]} 58... f3 {[%clk 0:00:32.4]} 59. Rb8
{[%clk 0:00:22.2]} 59... Ra5 {[%clk 0:00:21.4]} 60. Rg8+ {[%clk 0:00:22.4]}
60... Rg5 {[%clk 0:00:22.4]} 61. Rxg5+ {[%clk 0:00:22.2]} 61... Kxg5 {[%clk
0:00:23.6]} 62. Kf2 {[%clk 0:00:21.2]} 62... Kg4 {[%clk 0:00:22.8]} 63. Kf1
{[%clk 0:00:21.3]} 63... Kg3 {[%clk 0:00:23.7]} 64. Kg1 {[%clk 0:00:22.1]} 64...
Kf4 {[%clk 0:00:23.1]} 65. Kf2 {[%clk 0:00:22.7]} 65... Ke4 {[%clk 0:00:23.8]}
66. Kf1 {[%clk 0:00:23.3]} 66... Kf5 {[%clk 0:00:24.6]} 67. Kf2 {[%clk 0:00:24]}
67... Kf4 {[%clk 0:00:25.8]} 68. Kf1 {[%clk 0:00:24.3]} 68... Ke3 {[%clk
0:00:24]} 69. Ke1 {[%clk 0:00:25]} 69... Ke4 {[%clk 0:00:19.6]} 1/2-1

[Event "Open Nuevo Centro. Jornada 2"]
[Site "Chess.com"]
[Date "2020.06.26"]
[Round "6"]
[White "Clement Gómez, José Antonio"]
[Black "Randazzo, Adrián"]
[Result "1-0"]
[WhiteElo "2494"]
[BlackElo "2470"]
[TimeControl "180+2"]
[EndTime "11:38:28 PDT"]
[Termination "Victoria de P4AD por abandono"]

1. c4 {[%clk 0:03:01.9]} 1... c5 {[%clk 0:03:01.2]} 2. g3 {[%clk 0:03:03]} 2...
Nc6 {[%clk 0:02:59.5]} 3. Bg2 {[%clk 0:03:04.9]} 3... g6 {[%clk 0:02:59.4]} 4.
Nc3 {[%clk 0:03:04.6]} 4... Bg7 {[%clk 0:02:57.2]} 5. Nf3 {[%clk 0:03:05.9]}
5... d6 {[%clk 0:02:55.6]} 6. d3 {[%clk 0:03:04.5]} 6... e5 {[%clk 0:02:46]} 7.
Rb1 {[%clk 0:03:00.4]} 7... Nge7 {[%clk 0:02:44.9]} 8. O-O {[%clk 0:02:57.8]}
8... O-O {[%clk 0:02:45.2]} 9. Ne1 {[%clk 0:02:59.1]} 9... Be6 {[%clk
0:02:41.3]} 10. Nc2 {[%clk 0:02:59.1]} 10... d5 {[%clk 0:02:42.8]} 11. b3 {[%clk
0:02:57.4]} 11... b6 {[%clk 0:02:25.4]} 12. e4 {[%clk 0:02:54]} 12... d4 {[%clk
0:02:24.1]} 13. Nd5 {[%clk 0:02:52.7]} 13... f5 {[%clk 0:02:19.9]} 14. f4 {[%clk
0:02:29.5]} 14... Qd7 {[%clk 0:02:12.3]} 15. b4 {[%clk 0:02:22.7]} 15... fxe4
{[%clk 0:02:10.1]} 16. dxe4 {[%clk 0:02:14.7]} 16... Rac8 {[%clk 0:02:00.7]} 17.
bxc5 {[%clk 0:02:15.3]} 17... bxc5 {[%clk 0:02:00.8]} 18. Ne1 {[%clk 0:02:11.3]}
18... Bg4 {[%clk 0:01:58.3]} 19. Qd2 {[%clk 0:01:52]} 19... Rb8 {[%clk
0:01:58.5]} 20. Rxb8 {[%clk 0:01:47.4]} 20... Rxb8 {[%clk 0:02:00.4]} 21. Nd3
{[%clk 0:01:47.5]} 21... Rf8 {[%clk 0:01:42]} 22. Nxc5 {[%clk 0:01:41.5]} 22...
Qd6 {[%clk 0:01:36.7]} 23. Ba3 {[%clk 0:01:35.5]} 23... exf4 {[%clk 0:01:35.2]}
24. gxf4 {[%clk 0:01:37.4]} 24... Nxd5 {[%clk 0:01:33.6]} 25. cxd5 {[%clk
0:01:35.4]} 25... d3 {[%clk 0:01:27.7]} 26. e5 {[%clk 0:01:19]} 26... Nxe5
{[%clk 0:01:08.6]} 27. fxe5 {[%clk 0:01:20.9]} 27... Bxe5 {[%clk 0:01:05.1]} 28.
Rxf8+ {[%clk 0:01:07.2]} 28... Qxf8 {[%clk 0:01:07]} 29. Qxd3 {[%clk 0:01:04.9]}
29... Qf4 {[%clk 0:01:05.6]} 30. Ne4 {[%clk 0:00:36]} 30... Qxh2+ {[%clk
0:01:04.7]} 31. Kf1 {[%clk 0:00:31.4]} 31... Qf4+ {[%clk 0:01:03.1]} 32. Ke1
{[%clk 0:00:19.1]} 32... h5 {[%clk 0:00:50.9]} 33. d6 {[%clk 0:00:19.1]} 33...
Bd7 {[%clk 0:00:48.6]} 34. Qf3 {[%clk 0:00:14.2]} 34... Qh4+ {[%clk 0:00:35.5]}
35. Kd2 {[%clk 0:00:07.6]} 35... Kg7 {[%clk 0:00:32.6]} 36. Kc2 {[%clk
0:00:04.2]} 36... Qh2 {[%clk 0:00:33.5]} 37. Bb2 {[%clk 0:00:04.2]} 37... h4
{[%clk 0:00:31.5]} 38. Bxe5+ {[%clk 0:00:03]} 38... Qxe5 {[%clk 0:00:33.4]} 39.
Qd3 {[%clk 0:00:04]} 39... h3 {[%clk 0:00:30.1]} 40. Bf3 {[%clk 0:00:05]} 40...
h2 {[%clk 0:00:28.2]} 41. Qc3 {[%clk 0:00:05.6]} 41... Qxc3+ {[%clk 0:00:27.1]}
42. Kxc3 {[%clk 0:00:07.5]} 42... Bg4 {[%clk 0:00:21.6]} 43. Bg2 {[%clk
0:00:07.4]} 43... Bf5 {[%clk 0:00:20]} 44. Kd4 {[%clk 0:00:08.3]} 44... a5
{[%clk 0:00:20.7]} 45. Ke5 {[%clk 0:00:09.1]} 45... a4 {[%clk 0:00:21.9]} 46. a3
{[%clk 0:00:10.3]} 46... Bg4 {[%clk 0:00:18]} 47. Nc5 {[%clk 0:00:10.1]} 47...
Kf7 {[%clk 0:00:16.3]} 48. Bd5+ {[%clk 0:00:07.7]} 48... Ke8 {[%clk 0:00:17.4]}
49. Kf6 {[%clk 0:00:07.4]} 49... Bf5 {[%clk 0:00:17.5]} 50. Bc6+ {[%clk
0:00:08]} 50... Kd8 {[%clk 0:00:17.2]} 51. Ne6+ {[%clk 0:00:08.7]} 51... Bxe6
{[%clk 0:00:07.1]} 52. Kxe6 {[%clk 0:00:10.6]} 52... g5 {[%clk 0:00:08.6]} 53.
Kf5 {[%clk 0:00:11.7]} 53... g4 {[%clk 0:00:10.2]} 54. Kxg4 {[%clk 0:00:12.7]}
54... h1=Q {[%clk 0:00:06.5]} 55. Bxh1 {[%clk 0:00:13.6]} 55... Kd7 {[%clk
0:00:08.1]} 56. Bf3 {[%clk 0:00:05.2]} 56... Kxd6 {[%clk 0:00:10]} 57. Bd1
{[%clk 0:00:06.7]} 57... Kc5 {[%clk 0:00:08.6]} 58. Bxa4 {[%clk 0:00:07.5]}
58... Kc4 {[%clk 0:00:08.5]} 59. Be8 {[%clk 0:00:08.7]} 59... Kb3 {[%clk
0:00:09.2]} 60. a4 {[%clk 0:00:10.6]} 60... Kb4 {[%clk 0:00:11]} 61. Kf4 {[%clk
0:00:12.5]} 61... Ka5 {[%clk 0:00:12.9]} 62. Ke4 {[%clk 0:00:14.4]} 62... Kb6
{[%clk 0:00:14.3]} 63. Kd4 {[%clk 0:00:16.3]} 63... Ka5 {[%clk 0:00:16.1]} 64.
Kc5 {[%clk 0:00:17.1]} 64... Ka6 {[%clk 0:00:17.4]} 65. Bb5+ {[%clk 0:00:19]}
65... Ka5 {[%clk 0:00:19.3]} 66. Bc6 {[%clk 0:00:19.7]} 66... Ka6 {[%clk
0:00:20.6]} 67. Kb4 {[%clk 0:00:21.6]} 67... Kb6 {[%clk 0:00:21.9]} 68. Be4
{[%clk 0:00:22.1]} 68... Ka6 {[%clk 0:00:23.8]} 69. Bd3+ {[%clk 0:00:23.9]}
69... Kb6 {[%clk 0:00:25.7]} 70. Bc4 {[%clk 0:00:25.8]} 70... Ka7 {[%clk
0:00:26.9]} 71. a5 {[%clk 0:00:27.7]} 71... Kb7 {[%clk 0:00:27.6]} 72. Kb5
{[%clk 0:00:29.6]} 72... Ka7 {[%clk 0:00:28.8]} 73. Bd3 {[%clk 0:00:31.5]} 1

[Event "Open Nuevo Centro. Jornada 2"]
[Site "Chess.com"]
[Date "2020.06.26"]
[Round "7"]
[White "Martinez Hernandez, Paula"]
[Black "Reig Albero, Ferran"]
[Result "0-1"]
[WhiteElo "2010"]
[BlackElo "1820"]
[TimeControl "180+2"]
[EndTime "11:39:40 PDT"]
[Termination "Victoria de Narref por abandono"]

1. e4 {[%clk 0:03:01.9]} 1... c5 {[%clk 0:02:59.6]} 2. Nc3 {[%clk 0:03:02.5]}
2... d6 {[%clk 0:03:00.6]} 3. g3 {[%clk 0:03:03]} 3... g6 {[%clk 0:03:01.1]} 4.
Bg2 {[%clk 0:03:04.4]} 4... Bg7 {[%clk 0:03:02]} 5. Nge2 {[%clk 0:03:05.9]} 5...
Nc6 {[%clk 0:03:03.1]} 6. d3 {[%clk 0:03:07.4]} 6... e6 {[%clk 0:03:04.2]} 7.
Be3 {[%clk 0:03:08.5]} 7... Nge7 {[%clk 0:03:02.8]} 8. Qd2 {[%clk 0:03:09.8]}
8... a6 {[%clk 0:03:02.1]} 9. h4 {[%clk 0:03:07.2]} 9... h5 {[%clk 0:03:02.2]}
10. f4 {[%clk 0:03:06.7]} 10... b5 {[%clk 0:03:03]} 11. O-O {[%clk 0:03:06.8]}
11... b4 {[%clk 0:03:02.4]} 12. Nd1 {[%clk 0:03:05.6]} 12... Bb7 {[%clk
0:03:03.3]} 13. c3 {[%clk 0:03:06.1]} 13... bxc3 {[%clk 0:03:03]} 14. b3 {[%clk
0:03:06.9]} 0

[Event "Open Nuevo Centro. Jornada 2"]
[Site "Chess.com"]
[Date "2020.06.26"]
[Round "7"]
[White "Camison Zornoza, Cesar"]
[Black "Beneyto de Ramon, Guillermo"]
[Result "1-0"]
[WhiteElo "1713"]
[BlackElo "1502"]
[TimeControl "180+2"]
[EndTime "11:41:15 PDT"]
[Termination "Victoria de cczchess por jaque mate"]

1. e4 {[%clk 0:03:01.9]} 1... Nf6 {[%clk 0:03:00.6]} 2. e5 {[%clk 0:03:02.4]}
2... Nd5 {[%clk 0:03:01.1]} 3. d4 {[%clk 0:03:04]} 3... d6 {[%clk 0:03:01.4]} 4.
Nf3 {[%clk 0:03:05.3]} 4... dxe5 {[%clk 0:03:02.2]} 5. Nxe5 {[%clk 0:03:03.4]}
5... c6 {[%clk 0:03:02.4]} 6. Bc4 {[%clk 0:03:03.1]} 6... Bf5 {[%clk 0:02:59.9]}
7. O-O {[%clk 0:02:58.5]} 7... Nd7 {[%clk 0:03:00.1]} 8. Re1 {[%clk 0:02:54.5]}
8... Nxe5 {[%clk 0:02:53.4]} 9. Rxe5 {[%clk 0:02:54.4]} 9... e6 {[%clk
0:02:53.9]} 10. Qe2 {[%clk 0:02:47.1]} 10... Bg6 {[%clk 0:02:41.6]} 11. Rxd5
{[%clk 0:02:40.9]} 11... cxd5 {[%clk 0:02:41.6]} 12. Bb5+ {[%clk 0:02:42]} 12...
Ke7 {[%clk 0:02:36.4]} 13. Bg5+ {[%clk 0:02:42.1]} 13... f6 {[%clk 0:02:36.7]}
14. Bf4 {[%clk 0:02:37.6]} 14... Qa5 {[%clk 0:02:32.4]} 15. Nc3 {[%clk
0:02:34.7]} 15... Rc8 {[%clk 0:02:27.9]} 16. Re1 {[%clk 0:02:33.3]} 16... a6
{[%clk 0:02:28.1]} 17. Qxe6+ {[%clk 0:02:32.9]} 17... Kd8 {[%clk 0:02:20.9]} 18.
Qd7# {[%clk 0:02:33.2]} 1